[Event "Titled Tuesday Blitz August 1 Late 2023"]
[White "Hajiyev, Kanan"]
[Black "Aravindh, Chithambaram VR."]
[WhiteFideId "13404148"]
[BlackFideId "5072786"]
[WhiteElo "2548"]
[BlackElo "2888"]
[Result "0-1"]
[Round "2"]
[TimeControl "180+1"]
[Date "2023.08.01"]
[WhiteClock "0:00:34"]
[BlackClock "0:01:30"]
[Board "23"]

1. d4 {[%clk 0:03:00]}  g6 {[%clk 0:02:59]} 2. Nf3 {[%clk 0:03:01]}  Bg7 {[%clk 0:02:59]} 3. g3 {[%clk 0:03:02]}  d6 {[%clk 0:02:59]} 4. Bg2 {[%clk 0:03:02]}  Nf6 {[%clk 0:02:59]} 5. O-O {[%clk 0:03:03]}  O-O {[%clk 0:02:59]} 6. b3 {[%clk 0:03:03]}  c5 {[%clk 0:02:59]} 7. Bb2 {[%clk 0:03:04]}  Ne4 {[%clk 0:02:45]} 8. Nbd2 {[%clk 0:03:04]}  Nxd2 {[%clk 0:02:42]} 9. Qxd2 {[%clk 0:03:04]}  Nc6 {[%clk 0:02:43]} 10. c4 {[%clk 0:03:04]}  Bg4 {[%clk 0:02:40]} 11. dxc5 {[%clk 0:02:45]}  dxc5 {[%clk 0:02:41]} 12. Bxg7 {[%clk 0:02:36]}  Kxg7 {[%clk 0:02:22]} 13. Qc3+ {[%clk 0:02:32]}  Kg8 {[%clk 0:02:21]} 14. Rad1 {[%clk 0:02:30]}  Qc7 {[%clk 0:02:20]} 15. Rd5 {[%clk 0:02:29]}  Bxf3 {[%clk 0:02:16]} 16. Bxf3 {[%clk 0:02:23]}  Nd4 {[%clk 0:02:16]} 17. Re1 {[%clk 0:02:23]}  e6 {[%clk 0:02:08]} 18. Rg5 {[%clk 0:02:17]}  f5 {[%clk 0:01:51]} 19. g4 {[%clk 0:02:01]}  Qg7 {[%clk 0:01:45]} 20. Qe3 {[%clk 0:01:17]}  h6 {[%clk 0:01:43]} 21. Bxb7 {[%clk 0:01:11]}  Rab8 {[%clk 0:01:36]} 22. gxf5 {[%clk 0:00:41]}  hxg5 {[%clk 0:01:35]} 23. f6 {[%clk 0:00:34]}  Qxb7 {[%clk 0:01:30]} 0-1


[Site "https://www.chess.com"]

[Event "Titled Tuesday Blitz August 1 Late 2023"]
[White "Perez Ponsa, Federico"]
[Black "Kalogeris, Ioannis"]
[WhiteFideId "117927"]
[BlackFideId "4239563"]
[WhiteElo "2883"]
[BlackElo "2548"]
[Result "1-0"]
[Round "2"]
[TimeControl "180+1"]
[Date "2023.08.01"]
[WhiteClock "0:00:01"]
[BlackClock "0:00:12"]
[Board "24"]

1. e4 {[%clk 0:02:31]}  e5 {[%clk 0:02:53]} 2. Nf3 {[%clk 0:02:32]}  Nc6 {[%clk 0:02:49]} 3. d4 {[%clk 0:02:31]}  exd4 {[%clk 0:02:46]} 4. Nxd4 {[%clk 0:02:32]}  Bc5 {[%clk 0:02:46]} 5. Nb3 {[%clk 0:02:32]}  Bb6 {[%clk 0:02:44]} 6. Qe2 {[%clk 0:02:33]}  Nge7 {[%clk 0:02:41]} 7. Nc3 {[%clk 0:02:33]}  O-O {[%clk 0:02:41]} 8. Be3 {[%clk 0:02:33]}  f5 {[%clk 0:02:40]} 9. O-O-O {[%clk 0:02:30]}  f4 {[%clk 0:02:36]} 10. Bxb6 {[%clk 0:02:30]}  axb6 {[%clk 0:02:37]} 11. h4 {[%clk 0:02:31]}  d6 {[%clk 0:02:27]} 12. h5 {[%clk 0:02:30]}  h6 {[%clk 0:02:17]} 13. Kb1 {[%clk 0:02:13]}  Ne5 {[%clk 0:02:14]} 14. f3 {[%clk 0:02:07]}  Bd7 {[%clk 0:01:58]} 15. a3 {[%clk 0:01:57]}  Qe8 {[%clk 0:01:45]} 16. Nd4 {[%clk 0:01:37]}  c6 {[%clk 0:01:38]} 17. Qd2 {[%clk 0:00:47]}  Rf6 {[%clk 0:01:32]} 18. Rh4 {[%clk 0:00:45]}  Qf7 {[%clk 0:01:22]} 19. a4 {[%clk 0:00:30]}  Kh8 {[%clk 0:01:04]} 20. b3 {[%clk 0:00:30]}  Rd8 {[%clk 0:00:51]} 21. Kb2 {[%clk 0:00:30]}  Bc8 {[%clk 0:00:49]} 22. Nde2 {[%clk 0:00:28]}  Rf8 {[%clk 0:00:45]} 23. Nc1 {[%clk 0:00:28]}  Be6 {[%clk 0:00:38]} 24. Qxd6 {[%clk 0:00:24]}  Nd7 {[%clk 0:00:29]} 25. Qd4 {[%clk 0:00:21]}  Nc5 {[%clk 0:00:27]} 26. Qb4 {[%clk 0:00:14]}  Nc8 {[%clk 0:00:26]} 27. a5 {[%clk 0:00:14]}  Na6 {[%clk 0:00:24]} 28. Bxa6 {[%clk 0:00:13]}  bxa6 {[%clk 0:00:24]} 29. axb6 {[%clk 0:00:13]}  Qb7 {[%clk 0:00:24]} 30. Na4 {[%clk 0:00:13]}  Bg8 {[%clk 0:00:22]} 31. Nc5 {[%clk 0:00:12]}  Qxb6 {[%clk 0:00:22]} 32. Qxb6 {[%clk 0:00:12]}  Nxb6 {[%clk 0:00:23]} 33. N1d3 {[%clk 0:00:10]}  a5 {[%clk 0:00:23]} 34. Ne5 {[%clk 0:00:10]}  Ra8 {[%clk 0:00:20]} 35. Ned7 {[%clk 0:00:08]}  Nxd7 {[%clk 0:00:19]} 36. Rxd7 {[%clk 0:00:08]}  a4 {[%clk 0:00:19]} 37. bxa4 {[%clk 0:00:08]}  Rff8 {[%clk 0:00:17]} 38. Rg4 {[%clk 0:00:08]}  Rfb8+ {[%clk 0:00:16]} 39. Kc1 {[%clk 0:00:09]}  Ra5 {[%clk 0:00:15]} 40. Nd3 {[%clk 0:00:09]}  Rxa4 {[%clk 0:00:16]} 41. Rgxg7 {[%clk 0:00:09]}  Ra1+ {[%clk 0:00:15]} 42. Kd2 {[%clk 0:00:09]}  Rbb1 {[%clk 0:00:13]} 43. Nxf4 {[%clk 0:00:08]}  Rd1+ {[%clk 0:00:12]} 44. Kc3 {[%clk 0:00:09]}  Ra3+ {[%clk 0:00:12]} 45. Kb2 {[%clk 0:00:09]}  Rda1 {[%clk 0:00:12]} 46. Ng6# {[%clk 0:00:01]} 1-0


[Site "https://www.chess.com"]

[Event "Titled Tuesday Blitz August 1 Late 2023"]
[White "Shtembuliak, Evgeny"]
[Black "Keleberda, Tymur"]
[WhiteFideId "14113325"]
[BlackFideId "14174294"]
[WhiteElo "2870"]
[BlackElo "2545"]
[Result "1-0"]
[Round "2"]
[TimeControl "180+1"]
[Date "2023.08.01"]
[WhiteClock "0:01:16"]
[BlackClock "0:01:17"]
[Board "25"]

1. c4 {[%clk 0:03:00]}  Nf6 {[%clk 0:02:52]} 2. Nc3 {[%clk 0:03:01]}  c5 {[%clk 0:02:46]} 3. Nf3 {[%clk 0:03:00]}  Nc6 {[%clk 0:02:46]} 4. e3 {[%clk 0:02:59]}  e6 {[%clk 0:02:43]} 5. d4 {[%clk 0:02:59]}  cxd4 {[%clk 0:02:43]} 6. exd4 {[%clk 0:02:58]}  d5 {[%clk 0:02:43]} 7. Bd3 {[%clk 0:02:53]}  dxc4 {[%clk 0:02:43]} 8. Bxc4 {[%clk 0:02:54]}  Be7 {[%clk 0:02:39]} 9. O-O {[%clk 0:02:54]}  Nb4 {[%clk 0:02:38]} 10. Bg5 {[%clk 0:02:52]}  O-O {[%clk 0:02:34]} 11. Ne5 {[%clk 0:02:49]}  Nfd5 {[%clk 0:02:32]} 12. Bd2 {[%clk 0:02:44]}  Nc6 {[%clk 0:02:16]} 13. Nxc6 {[%clk 0:02:42]}  bxc6 {[%clk 0:02:17]} 14. Ne4 {[%clk 0:02:39]}  Qb6 {[%clk 0:02:16]} 15. Qc2 {[%clk 0:02:06]}  Qxd4 {[%clk 0:02:01]} 16. Rad1 {[%clk 0:02:06]}  Qb6 {[%clk 0:01:56]} 17. Bg5 {[%clk 0:01:53]}  Bxg5 {[%clk 0:01:55]} 18. Nxg5 {[%clk 0:01:52]}  g6 {[%clk 0:01:56]} 19. Rfe1 {[%clk 0:01:31]}  Ba6 {[%clk 0:01:55]} 20. Bb3 {[%clk 0:01:32]}  Rac8 {[%clk 0:01:36]} 21. Qe4 {[%clk 0:01:30]}  Qb4 {[%clk 0:01:31]} 22. Bxd5 {[%clk 0:01:23]}  Qe7 {[%clk 0:01:26]} 23. Qh4 {[%clk 0:01:19]}  f6 {[%clk 0:01:22]} 24. Bxe6+ {[%clk 0:01:19]}  Kh8 {[%clk 0:01:21]} 25. Bxc8 {[%clk 0:01:17]}  fxg5 {[%clk 0:01:21]} 26. Rxe7 {[%clk 0:01:16]}  gxh4 {[%clk 0:01:17]} 27. Bxa6 {[%clk 0:01:16]} 1-0


[Site "https://www.chess.com"]

[Event "Titled Tuesday Blitz August 1 Late 2023"]
[White "Toropov, Pavel"]
[Black "Maksimovic, Bojan"]
[WhiteFideId "24129178"]
[BlackFideId "14408120"]
[WhiteElo "2538"]
[BlackElo "2854"]
[Result "0-1"]
[Round "2"]
[TimeControl "180+1"]
[Date "2023.08.01"]
[WhiteClock "0:00:14"]
[BlackClock "0:00:36"]
[Board "28"]

1. e4 {[%clk 0:02:48]}  g6 {[%clk 0:02:58]} 2. d4 {[%clk 0:02:47]}  Nf6 {[%clk 0:02:58]} 3. Nc3 {[%clk 0:02:47]}  d5 {[%clk 0:02:58]} 4. e5 {[%clk 0:02:38]}  Ne4 {[%clk 0:02:57]} 5. Nxe4 {[%clk 0:02:33]}  dxe4 {[%clk 0:02:58]} 6. Be3 {[%clk 0:02:32]}  c5 {[%clk 0:02:58]} 7. dxc5 {[%clk 0:02:27]}  Qc7 {[%clk 0:02:58]} 8. Qd4 {[%clk 0:02:23]}  Bf5 {[%clk 0:02:45]} 9. e6 {[%clk 0:02:18]}  f6 {[%clk 0:02:44]} 10. O-O-O {[%clk 0:02:15]}  Nc6 {[%clk 0:02:02]} 11. Bb5 {[%clk 0:02:14]}  a6 {[%clk 0:01:49]} 12. Ba4 {[%clk 0:02:09]}  Rd8 {[%clk 0:01:17]} 13. Qxd8+ {[%clk 0:02:02]}  Qxd8 {[%clk 0:01:17]} 14. Rxd8+ {[%clk 0:02:02]}  Kxd8 {[%clk 0:01:17]} 15. Bb3 {[%clk 0:02:02]}  Bg7 {[%clk 0:00:57]} 16. Ne2 {[%clk 0:02:01]}  Kc8 {[%clk 0:00:58]} 17. h3 {[%clk 0:01:45]}  h5 {[%clk 0:00:58]} 18. Ng3 {[%clk 0:01:05]}  h4 {[%clk 0:00:58]} 19. Nxf5 {[%clk 0:00:41]}  gxf5 {[%clk 0:00:59]} 20. Kd2 {[%clk 0:00:37]}  Bh6 {[%clk 0:00:53]} 21. Bxh6 {[%clk 0:00:36]}  Rxh6 {[%clk 0:00:54]} 22. Ke3 {[%clk 0:00:36]}  Rg6 {[%clk 0:00:55]} 23. Rg1 {[%clk 0:00:35]}  Ne5 {[%clk 0:00:49]} 24. g3 {[%clk 0:00:27]}  Nf3 {[%clk 0:00:48]} 25. Rg2 {[%clk 0:00:26]}  Rg5 {[%clk 0:00:46]} 26. c3 {[%clk 0:00:20]}  Kc7 {[%clk 0:00:46]} 27. Bd1 {[%clk 0:00:20]}  Ne5 {[%clk 0:00:46]} 28. Bb3 {[%clk 0:00:17]}  Ng6 {[%clk 0:00:44]} 29. Rg1 {[%clk 0:00:17]}  hxg3 {[%clk 0:00:40]} 30. fxg3 {[%clk 0:00:18]}  f4+ {[%clk 0:00:41]} 31. Kxe4 {[%clk 0:00:18]}  fxg3 {[%clk 0:00:41]} 32. Kf3 {[%clk 0:00:18]}  Nh4+ {[%clk 0:00:42]} 33. Kf4 {[%clk 0:00:18]}  g2 {[%clk 0:00:43]} 34. Bd5 {[%clk 0:00:18]}  Rxd5 {[%clk 0:00:42]} 35. Kg4 {[%clk 0:00:18]}  Nf5 {[%clk 0:00:41]} 36. h4 {[%clk 0:00:17]}  Rxc5 {[%clk 0:00:36]} 37. h5 {[%clk 0:00:16]}  Nh6+ {[%clk 0:00:35]} 38. Kh4 {[%clk 0:00:14]}  Rg5 {[%clk 0:00:36]} 0-1


[Site "https://www.chess.com"]

[Event "Titled Tuesday Blitz August 1 Late 2023"]
[White "Grigoriants, Sergey"]
[Black "Mladek, Richard"]
[WhiteFideId "4130804"]
[BlackFideId "386588"]
[WhiteElo "2840"]
[BlackElo "2538"]
[Result "1-0"]
[Round "2"]
[TimeControl "180+1"]
[Date "2023.08.01"]
[WhiteClock "0:00:08"]
[BlackClock "0:00:05"]
[Board "29"]

1. d4 {[%clk 0:03:00]}  Nf6 {[%clk 0:02:59]} 2. c4 {[%clk 0:03:00]}  e6 {[%clk 0:03:00]} 3. g3 {[%clk 0:02:59]}  d5 {[%clk 0:02:59]} 4. Bg2 {[%clk 0:02:59]}  dxc4 {[%clk 0:02:54]} 5. Nf3 {[%clk 0:02:59]}  c5 {[%clk 0:02:54]} 6. O-O {[%clk 0:02:55]}  Nc6 {[%clk 0:02:55]} 7. dxc5 {[%clk 0:02:25]}  Qxd1 {[%clk 0:02:56]} 8. Rxd1 {[%clk 0:02:25]}  Bxc5 {[%clk 0:02:56]} 9. Nbd2 {[%clk 0:02:25]}  c3 {[%clk 0:02:56]} 10. bxc3 {[%clk 0:02:26]}  O-O {[%clk 0:02:56]} 11. Nb3 {[%clk 0:02:27]}  Be7 {[%clk 0:02:56]} 12. Nfd4 {[%clk 0:02:27]}  Nxd4 {[%clk 0:02:56]} 13. cxd4 {[%clk 0:02:27]}  Nd5 {[%clk 0:02:57]} 14. Bd2 {[%clk 0:02:22]}  f5 {[%clk 0:02:55]} 15. Rac1 {[%clk 0:02:13]}  Bd6 {[%clk 0:02:13]} 16. Bxd5 {[%clk 0:01:43]}  exd5 {[%clk 0:02:12]} 17. Bf4 {[%clk 0:01:44]}  Bxf4 {[%clk 0:02:06]} 18. gxf4 {[%clk 0:01:45]}  b6 {[%clk 0:02:02]} 19. Rc7 {[%clk 0:01:30]}  Ba6 {[%clk 0:02:02]} 20. e3 {[%clk 0:01:23]}  Rf6 {[%clk 0:01:35]} 21. Nd2 {[%clk 0:01:08]}  Rc8 {[%clk 0:01:17]} 22. Rxc8+ {[%clk 0:00:57]}  Bxc8 {[%clk 0:01:17]} 23. Rc1 {[%clk 0:00:58]}  Ba6 {[%clk 0:01:09]} 24. Rc7 {[%clk 0:00:32]}  Rf7 {[%clk 0:01:04]} 25. Rc6 {[%clk 0:00:32]}  Rd7 {[%clk 0:00:57]} 26. Nf3 {[%clk 0:00:28]}  Bb7 {[%clk 0:00:52]} 27. Rc3 {[%clk 0:00:28]}  Kf8 {[%clk 0:00:45]} 28. Ne5 {[%clk 0:00:28]}  Re7 {[%clk 0:00:45]} 29. f3 {[%clk 0:00:28]}  Ke8 {[%clk 0:00:44]} 30. Kf2 {[%clk 0:00:28]}  Kd8 {[%clk 0:00:44]} 31. Ra3 {[%clk 0:00:20]}  a5 {[%clk 0:00:36]} 32. Rb3 {[%clk 0:00:18]}  Kc7 {[%clk 0:00:36]} 33. h4 {[%clk 0:00:19]}  Ba6 {[%clk 0:00:31]} 34. Rb1 {[%clk 0:00:18]}  Bc4 {[%clk 0:00:31]} 35. a4 {[%clk 0:00:15]}  Ba6 {[%clk 0:00:29]} 36. h5 {[%clk 0:00:11]}  Kb7 {[%clk 0:00:28]} 37. Kg3 {[%clk 0:00:11]}  Rc7 {[%clk 0:00:25]} 38. Kh4 {[%clk 0:00:11]}  h6 {[%clk 0:00:24]} 39. Rg1 {[%clk 0:00:09]}  Bc4 {[%clk 0:00:22]} 40. Rb1 {[%clk 0:00:06]}  Ka6 {[%clk 0:00:22]} 41. Kg3 {[%clk 0:00:06]}  b5 {[%clk 0:00:22]} 42. axb5+ {[%clk 0:00:04]}  Bxb5 {[%clk 0:00:23]} 43. e4 {[%clk 0:00:05]}  dxe4 {[%clk 0:00:16]} 44. fxe4 {[%clk 0:00:06]}  Rc3+ {[%clk 0:00:16]} 45. Kf2 {[%clk 0:00:05]}  fxe4 {[%clk 0:00:17]} 46. d5 {[%clk 0:00:06]}  a4 {[%clk 0:00:12]} 47. d6 {[%clk 0:00:06]}  Rc8 {[%clk 0:00:08]} 48. Ke3 {[%clk 0:00:06]}  Rd8 {[%clk 0:00:09]} 49. Rd1 {[%clk 0:00:05]}  a3 {[%clk 0:00:09]} 50. Kxe4 {[%clk 0:00:05]}  Ka5 {[%clk 0:00:07]} 51. Kd5 {[%clk 0:00:03]}  Kb4 {[%clk 0:00:08]} 52. Rb1+ {[%clk 0:00:03]}  Ka5 {[%clk 0:00:06]} 53. Nc6+ {[%clk 0:00:03]}  Bxc6+ {[%clk 0:00:06]} 54. Kxc6 {[%clk 0:00:04]}  Ka4 {[%clk 0:00:04]} 55. d7 {[%clk 0:00:04]}  a2 {[%clk 0:00:05]} 56. Rd1 {[%clk 0:00:04]}  Kb3 {[%clk 0:00:04]} 57. Kc7 {[%clk 0:00:05]}  Rf8 {[%clk 0:00:03]} 58. d8=Q {[%clk 0:00:05]}  Rxd8 {[%clk 0:00:04]} 59. Kxd8 {[%clk 0:00:06]}  Kb2 {[%clk 0:00:03]} 60. Rg1 {[%clk 0:00:05]}  a1=Q {[%clk 0:00:04]} 61. Rxa1 {[%clk 0:00:05]}  Kxa1 {[%clk 0:00:05]} 62. Ke7 {[%clk 0:00:06]}  Kb2 {[%clk 0:00:04]} 63. Kf7 {[%clk 0:00:07]}  Kc3 {[%clk 0:00:05]} 64. Kxg7 {[%clk 0:00:07]}  Kd4 {[%clk 0:00:06]} 65. f5 {[%clk 0:00:08]}  Ke5 {[%clk 0:00:05]} 66. f6 {[%clk 0:00:08]} 1-0


[Site "https://www.chess.com"]

[Event "Titled Tuesday Blitz August 1 Late 2023"]
[White "Martinez Reyes, Pedro Ramon"]
[Black "Pichot, Alan"]
[WhiteFideId "3901807"]
[BlackFideId "110973"]
[WhiteElo "2537"]
[BlackElo "2838"]
[Result "0-1"]
[Round "2"]
[TimeControl "180+1"]
[Date "2023.08.01"]
[WhiteClock "0:00:00"]
[BlackClock "0:00:07"]
[Board "30"]

1. e4 {[%clk 0:02:59]}  c5 {[%clk 0:02:59]} 2. Nf3 {[%clk 0:02:59]}  e6 {[%clk 0:02:59]} 3. c3 {[%clk 0:02:58]}  d5 {[%clk 0:02:57]} 4. exd5 {[%clk 0:02:57]}  Qxd5 {[%clk 0:02:58]} 5. d4 {[%clk 0:02:57]}  Nf6 {[%clk 0:02:58]} 6. Na3 {[%clk 0:02:56]}  a6 {[%clk 0:02:59]} 7. Nc4 {[%clk 0:02:56]}  Nbd7 {[%clk 0:03:00]} 8. Be2 {[%clk 0:02:49]}  b5 {[%clk 0:03:00]} 9. Ne3 {[%clk 0:02:49]}  Qc6 {[%clk 0:03:00]} 10. a4 {[%clk 0:02:38]}  b4 {[%clk 0:02:31]} 11. Ne5 {[%clk 0:02:21]}  Qc7 {[%clk 0:02:24]} 12. O-O {[%clk 0:02:04]}  Nxe5 {[%clk 0:02:15]} 13. dxe5 {[%clk 0:02:04]}  Qxe5 {[%clk 0:02:16]} 14. Bf3 {[%clk 0:02:00]}  Ra7 {[%clk 0:02:11]} 15. Nc4 {[%clk 0:01:58]}  Qc7 {[%clk 0:02:09]} 16. cxb4 {[%clk 0:01:57]}  Be7 {[%clk 0:01:47]} 17. Be3 {[%clk 0:01:56]}  O-O {[%clk 0:01:46]} 18. Rc1 {[%clk 0:01:29]}  Rd8 {[%clk 0:01:38]} 19. Qb3 {[%clk 0:01:23]}  Bb7 {[%clk 0:01:37]} 20. Be2 {[%clk 0:01:11]}  Bd5 {[%clk 0:01:33]} 21. b5 {[%clk 0:01:09]}  axb5 {[%clk 0:01:30]} 22. axb5 {[%clk 0:01:10]}  Rb7 {[%clk 0:01:31]} 23. Qa4 {[%clk 0:01:06]}  h5 {[%clk 0:01:28]} 24. h3 {[%clk 0:01:03]}  Rdb8 {[%clk 0:01:14]} 25. Na3 {[%clk 0:00:44]}  Qe5 {[%clk 0:01:02]} 26. Qc2 {[%clk 0:00:36]}  h4 {[%clk 0:00:39]} 27. Qc3 {[%clk 0:00:32]}  Qf5 {[%clk 0:00:32]} 28. Bd3 {[%clk 0:00:26]}  Ne4 {[%clk 0:00:31]} 29. Qc2 {[%clk 0:00:24]}  Qe5 {[%clk 0:00:28]} 30. f4 {[%clk 0:00:21]}  Qf5 {[%clk 0:00:24]} 31. Rce1 {[%clk 0:00:18]}  c4 {[%clk 0:00:17]} 32. Nxc4 {[%clk 0:00:15]}  Bxc4 {[%clk 0:00:14]} 33. Qxc4 {[%clk 0:00:14]}  Nd6 {[%clk 0:00:15]} 34. Qc3 {[%clk 0:00:06]}  Bf6 {[%clk 0:00:11]} 35. Bxf5 {[%clk 0:00:05]}  Bxc3 {[%clk 0:00:12]} 36. bxc3 {[%clk 0:00:06]}  Nxf5 {[%clk 0:00:13]} 37. c4 {[%clk 0:00:04]}  Rc8 {[%clk 0:00:13]} 38. Bf2 {[%clk 0:00:01]}  Rxc4 {[%clk 0:00:13]} 39. b6 {[%clk 0:00:02]}  Rxf4 {[%clk 0:00:12]} 40. Rb1 {[%clk 0:00:02]}  Ne7 {[%clk 0:00:08]} 41. Rfc1 {[%clk 0:00:02]}  Nd5 {[%clk 0:00:09]} 42. Rc5 {[%clk 0:00:02]}  Kh7 {[%clk 0:00:06]} 43. Rcb5 {[%clk 0:00:02]}  Ra4 {[%clk 0:00:06]} 44. R5b3 {[%clk 0:00:01]}  g5 {[%clk 0:00:07]} 45. Rb5 {[%clk 0:00:01]}  Kg6 {[%clk 0:00:07]} 46. Rf1 {[%clk 0:00:00]}  Rf4 {[%clk 0:00:07]} 0-1


[Site "https://www.chess.com"]

[Event "Titled Tuesday Blitz August 1 Late 2023"]
[White "Bazeev, German"]
[Black "Altman, Joshua"]
[WhiteFideId "24119350"]
[BlackFideId "426210"]
[WhiteElo "2822"]
[BlackElo "2535"]
[Result "1-0"]
[Round "2"]
[TimeControl "180+1"]
[Date "2023.08.01"]
[WhiteClock "0:00:24"]
[BlackClock "0:00:40"]
[Board "31"]

1. c4 {[%clk 0:03:00]}  e5 {[%clk 0:02:59]} 2. Nc3 {[%clk 0:03:01]}  Nc6 {[%clk 0:03:00]} 3. Nf3 {[%clk 0:03:01]}  Nf6 {[%clk 0:03:00]} 4. e4 {[%clk 0:03:02]}  Bb4 {[%clk 0:03:00]} 5. d3 {[%clk 0:03:02]}  d6 {[%clk 0:03:00]} 6. h3 {[%clk 0:03:03]}  h6 {[%clk 0:03:00]} 7. Be2 {[%clk 0:03:03]}  O-O {[%clk 0:03:00]} 8. O-O {[%clk 0:03:04]}  Be6 {[%clk 0:02:57]} 9. Be3 {[%clk 0:03:03]}  Qd7 {[%clk 0:02:56]} 10. Nd5 {[%clk 0:03:02]}  Bxd5 {[%clk 0:02:55]} 11. cxd5 {[%clk 0:02:53]}  Ne7 {[%clk 0:02:55]} 12. Rc1 {[%clk 0:02:25]}  Ba5 {[%clk 0:02:54]} 13. Nd2 {[%clk 0:02:12]}  Ng6 {[%clk 0:02:49]} 14. Nc4 {[%clk 0:02:08]}  Bb6 {[%clk 0:02:49]} 15. Bg4 {[%clk 0:01:59]}  Nxg4 {[%clk 0:02:44]} 16. hxg4 {[%clk 0:01:58]}  Bxe3 {[%clk 0:02:43]} 17. Nxe3 {[%clk 0:01:57]}  Qe7 {[%clk 0:02:41]} 18. g3 {[%clk 0:01:53]}  Rac8 {[%clk 0:02:38]} 19. Qb3 {[%clk 0:01:49]}  b6 {[%clk 0:02:38]} 20. Nf5 {[%clk 0:01:39]}  Qg5 {[%clk 0:02:36]} 21. Qd1 {[%clk 0:01:40]}  h5 {[%clk 0:02:29]} 22. gxh5 {[%clk 0:01:38]}  Nf4 {[%clk 0:02:29]} 23. Kh2 {[%clk 0:01:07]}  Nxh5 {[%clk 0:02:22]} 24. Qf3 {[%clk 0:01:06]}  g6 {[%clk 0:02:20]} 25. Ne3 {[%clk 0:00:56]}  Kg7 {[%clk 0:02:19]} 26. Qg4 {[%clk 0:00:53]}  Qxg4 {[%clk 0:01:59]} 27. Nxg4 {[%clk 0:00:54]}  Rh8 {[%clk 0:01:58]} 28. Kg2 {[%clk 0:00:54]}  f5 {[%clk 0:01:58]} 29. Ne3 {[%clk 0:00:54]}  f4 {[%clk 0:01:49]} 30. Ng4 {[%clk 0:00:51]}  Rhf8 {[%clk 0:01:48]} 31. Rfd1 {[%clk 0:00:46]}  Rf7 {[%clk 0:01:47]} 32. Rd2 {[%clk 0:00:45]}  Rcf8 {[%clk 0:01:33]} 33. Rdc2 {[%clk 0:00:45]}  fxg3 {[%clk 0:01:33]} 34. fxg3 {[%clk 0:00:45]}  Rf3 {[%clk 0:01:27]} 35. Rxc7+ {[%clk 0:00:33]}  Kh8 {[%clk 0:01:27]} 36. Nh6 {[%clk 0:00:28]}  Rxg3+ {[%clk 0:01:26]} 37. Kh1 {[%clk 0:00:29]}  Rh3+ {[%clk 0:01:13]} 38. Kg1 {[%clk 0:00:29]}  Nf4 {[%clk 0:01:13]} 39. Nf7+ {[%clk 0:00:29]}  Rxf7 {[%clk 0:01:13]} 40. Rxf7 {[%clk 0:00:28]}  Ne2+ {[%clk 0:01:12]} 41. Kg2 {[%clk 0:00:28]}  Rg3+ {[%clk 0:00:56]} 42. Kf2 {[%clk 0:00:28]}  Nxc1 {[%clk 0:00:50]} 43. Kxg3 {[%clk 0:00:28]}  Nxd3 {[%clk 0:00:51]} 44. Rxa7 {[%clk 0:00:27]}  Nc5 {[%clk 0:00:51]} 45. Kf3 {[%clk 0:00:25]}  g5 {[%clk 0:00:51]} 46. b4 {[%clk 0:00:25]}  g4+ {[%clk 0:00:51]} 47. Kxg4 {[%clk 0:00:25]}  Nxe4 {[%clk 0:00:51]} 48. Kf5 {[%clk 0:00:26]}  Nc3 {[%clk 0:00:50]} 49. Ke6 {[%clk 0:00:27]}  Kg8 {[%clk 0:00:48]} 50. Kxd6 {[%clk 0:00:27]}  Nb5+ {[%clk 0:00:48]} 51. Kxe5 {[%clk 0:00:25]}  Nxa7 {[%clk 0:00:49]} 52. Kd6 {[%clk 0:00:24]}  Kf7 {[%clk 0:00:48]} 53. a4 {[%clk 0:00:23]}  Ke8 {[%clk 0:00:47]} 54. Kc7 {[%clk 0:00:24]}  b5 {[%clk 0:00:42]} 55. a5 {[%clk 0:00:23]}  Ke7 {[%clk 0:00:42]} 56. d6+ {[%clk 0:00:22]}  Ke6 {[%clk 0:00:42]} 57. d7 {[%clk 0:00:23]}  Nc6 {[%clk 0:00:41]} 58. Kxc6 {[%clk 0:00:23]}  Ke7 {[%clk 0:00:40]} 59. Kc7 {[%clk 0:00:24]} 1-0


[Site "https://www.chess.com"]

[Event "Titled Tuesday Blitz August 1 Late 2023"]
[White "Berezin, Viktor"]
[Black "Hambleton, Aman"]
[WhiteFideId "14107872"]
[BlackFideId "2606577"]
[WhiteElo "2525"]
[BlackElo "2803"]
[Result "0-1"]
[Round "2"]
[TimeControl "180+1"]
[Date "2023.08.01"]
[WhiteClock "0:00:54"]
[BlackClock "0:00:04"]
[Board "34"]

1. d4 {[%clk 0:03:00]}  Nf6 {[%clk 0:02:58]} 2. Nf3 {[%clk 0:02:58]}  e6 {[%clk 0:02:58]} 3. c4 {[%clk 0:02:58]}  b6 {[%clk 0:02:59]} 4. g3 {[%clk 0:02:58]}  Ba6 {[%clk 0:02:58]} 5. Nbd2 {[%clk 0:02:57]}  Bb4 {[%clk 0:02:57]} 6. Qc2 {[%clk 0:02:57]}  Bb7 {[%clk 0:02:57]} 7. Bg2 {[%clk 0:02:57]}  Be4 {[%clk 0:02:57]} 8. Qb3 {[%clk 0:02:53]}  Bxd2+ {[%clk 0:02:57]} 9. Bxd2 {[%clk 0:02:53]}  d6 {[%clk 0:02:57]} 10. O-O {[%clk 0:02:53]}  O-O {[%clk 0:02:57]} 11. Rfc1 {[%clk 0:02:44]}  c5 {[%clk 0:02:33]} 12. dxc5 {[%clk 0:02:29]}  dxc5 {[%clk 0:02:31]} 13. Rd1 {[%clk 0:02:21]}  Nc6 {[%clk 0:01:56]} 14. Qe3 {[%clk 0:02:17]}  Qe7 {[%clk 0:00:50]} 15. Bc3 {[%clk 0:02:15]}  e5 {[%clk 0:00:50]} 16. Qg5 {[%clk 0:02:08]}  h6 {[%clk 0:00:46]} 17. Qe3 {[%clk 0:01:57]}  Nd4 {[%clk 0:00:33]} 18. Ne1 {[%clk 0:01:28]}  Bxg2 {[%clk 0:00:23]} 19. Kxg2 {[%clk 0:01:29]}  Qb7+ {[%clk 0:00:21]} 20. f3 {[%clk 0:01:29]}  Rfe8 {[%clk 0:00:20]} 21. Qf2 {[%clk 0:01:28]}  Ng4 {[%clk 0:00:12]} 22. Qg1 {[%clk 0:01:27]}  Nxe2 {[%clk 0:00:13]} 23. Qh1 {[%clk 0:01:19]}  Ne3+ {[%clk 0:00:05]} 24. Kf2 {[%clk 0:01:20]}  Nxd1+ {[%clk 0:00:05]} 25. Rxd1 {[%clk 0:01:20]}  Nxc3 {[%clk 0:00:05]} 26. bxc3 {[%clk 0:01:20]}  Rad8 {[%clk 0:00:05]} 27. Nc2 {[%clk 0:01:16]}  Qa6 {[%clk 0:00:04]} 28. Qf1 {[%clk 0:01:07]}  Qxa2 {[%clk 0:00:04]} 29. Qe2 {[%clk 0:01:07]}  Rxd1 {[%clk 0:00:03]} 30. Qxd1 {[%clk 0:01:08]}  Qxc4 {[%clk 0:00:03]} 31. Qd7 {[%clk 0:01:08]}  Qe6 {[%clk 0:00:03]} 32. Qxa7 {[%clk 0:01:08]}  e4 {[%clk 0:00:04]} 33. Qb7 {[%clk 0:00:57]}  exf3 {[%clk 0:00:04]} 34. Qxf3 {[%clk 0:00:58]}  Qf6 {[%clk 0:00:03]} 35. Qxf6 {[%clk 0:00:57]}  gxf6 {[%clk 0:00:04]} 36. Ne3 {[%clk 0:00:57]}  b5 {[%clk 0:00:04]} 37. Nd5 {[%clk 0:00:57]}  Kg7 {[%clk 0:00:04]} 38. Nc7 {[%clk 0:00:57]}  Rb8 {[%clk 0:00:04]} 39. Na6 {[%clk 0:00:57]}  Rc8 {[%clk 0:00:04]} 40. Ke3 {[%clk 0:00:56]}  Rc6 {[%clk 0:00:03]} 41. Nb8 {[%clk 0:00:56]}  Re6+ {[%clk 0:00:04]} 42. Kd3 {[%clk 0:00:56]}  b4 {[%clk 0:00:04]} 43. Nd7 {[%clk 0:00:55]}  bxc3 {[%clk 0:00:02]} 44. Nxc5 {[%clk 0:00:56]}  Rc6 {[%clk 0:00:02]} 45. Nb3 {[%clk 0:00:55]}  c2 {[%clk 0:00:02]} 46. Nc1 {[%clk 0:00:55]}  f5 {[%clk 0:00:02]} 47. Kd4 {[%clk 0:00:56]}  Rc8 {[%clk 0:00:02]} 48. Ke5 {[%clk 0:00:56]}  Kg6 {[%clk 0:00:03]} 49. h4 {[%clk 0:00:56]}  f6+ {[%clk 0:00:03]} 50. Kf4 {[%clk 0:00:56]}  Rc5 {[%clk 0:00:03]} 51. g4 {[%clk 0:00:56]}  Rc4+ {[%clk 0:00:03]} 52. Kf3 {[%clk 0:00:56]}  fxg4+ {[%clk 0:00:04]} 53. Kg3 {[%clk 0:00:54]}  h5 {[%clk 0:00:04]} 0-1


[Site "https://www.chess.com"]